Workbook

Sheet About
A1: XIMEA Camera sensor performance caluclator
A2: Version 2016-05-23
A4: This document contains multiple calculators for different sensors. Each is located in different sheet.
A6: Usage:
A7: 1. Activate the sheet depending on sensor.
A8: 2. Fill settings (orange)
A9: 3. Use results (green)

Sheet CMV20000
A1: Setting | B1: Value | C1: Units | D1: min | E1: max | F1: Note
A2: Sensor Readout Frequency | B2: 480 | C2: [MHz] | D2: 120 | E2: 480 | F2: Data Rate of Sensor image data output
A3: Bit Depth | B3: 12 | C3: [count] | D3: 12 | E3: 12 | F3: CMV20000 supports only 12 output; In this example Transport Packing == Sensor Bit Depth == 12bit
A4: ROI Width | B4: 5120 | C4: [count] | D4: 16 | E4: 5120 | F4: ROI in X direction decreases average transport bandwidth needed to transfer one frame (the whole line is read from sensor but only ROI part is sent)
A5: ROI Height | B5: 3840 | C5: [count] | D5: 2 | E5: 3840 | F5: ROI in Y direction decreases frame readout time (decreases number of lines that need to be read out before going to next frame)
A6: Exp time | B6: 1500 | C6: [count] | D6: 1 | E6: 65535 | F6: Actual Exposure Time depends on the Exp_Time, FOT and Clk_freq
A8: Results
A9: Frame Transfer | F9: Calculations
A10: Pixel Count | B10: =B5*B4/1000000 -> 19.6608 | C10: [Mpix] | F10: master clock | G10: =B2/12 -> 40 | H10: [MHz]
A11: Image Size | B11: =B4*B5/8*B3/1000000 -> 29.4912 | C11: [MBytes] | F11: master clk_per | G11: =1000/G10 -> 25 | H11: [ns]
A12: Frame Time | B12: =MAX(G13,B18)+G13/1000 -> 30.798768 | C12: [ms] | F12: FOT | G12: =((80*80+80/8)+2*641)*G11/1000 -> 192.3 | H12: [us]
A13: Max FPS | B13: =1000/B12 -> 32.46883122 | C13: [count] | F13: Readout Time | G13: =641*G11*B5/2/1000000 -> 30.768 | H13: [ms]
A14: Average Transfer Speed | B14: =B11/B12*1000 -> 957.5447953 | C14: [MB/s]
A16: Exposure times
A17: Min Exposure Time | B17: =(1+47*80)*G11/1000 -> 94.025 | C17: [us]
A18: Actual Exposure Time | B18: =((B6-1)*641+1+47*80)*G11/1000000 -> 24.1155 | C18: [ms]

Sheet CMV12000
A1: Setting | B1: Value | C1: Units | D1: min | E1: max | F1: Note
A2: Camera Model | B2: CB120 | F2: CB120xG-CM has PCIe x4 Gen2 interface (1750MB/s); CB120xG-CM-X8G3 with PCIe x8 Gen3 interface (7000MB/s)
A3: Sensor Readout Frequency | B3: 400 | C3: [MHz] | D3: 120 | E3: 600 | F3: Data Rate of Sensor image data output; Note: CB120 camera implementation has 480MHz limit @8bit mode
A4: Bit Depth | B4: 10 | C4: [count] | D4: 8 | E4: 12 | F4: In this example Camera Transport Packing == Sensor Bit Depth
A5: Acquisition Mode | B5: Normal | C5: [count]
A6: Channel Count per Side | B6: 16 | C6: [count] | F6: CB120 supports only 16 Channels per side; CB120-X8G3 support only 32 Channels per side
A7: ROI Width | B7: 4096 | C7: [count] | D7: 16 | E7: 4096 | F7: ROI in X direction decreases average transport bandwidth needed to transfer one frame (the whole line is read from sensor but only ROI part is sent)
A8: ROI Height | B8: 3072 | C8: [count] | D8: 2 | E8: 3072 | F8: ROI in Y direction decreases frame readout time (decreases number of lines that need to be read out before going to next frame)
A9: Exp time reg | B9: 1548 | C9: [count] | D9: 1 | E9: 65535 | F9: See the resulting Actual Exposure Time in [ms] below (depends on the Exp_Time, FOT and Clk_freq)
A10: Exp time | B10: 10.001125 | C10: [ms] | D10: =((1-1)*(G18+1)+(34*MOD(G17,256))+1)*G13*B4/1000000 -> 0.022975 | E10: =((65535-1)*(G18+1)+(34*MOD(G17,256))+1)*G13*B4/1000000 -> 422.717275
A11: Results | K11: Register Presets
A12: Frame Transfer | F12: Calculations | K12: Channel Count | M12: 32 | N12: 16 | O12: 8 | P12: 4 | Q12: 2 | R12: 1
A13: Pixel Count | B13: =B8*B7/1000000 -> 12.582912 | C13: [Mpix] | F13: clk_per | G13: =1000/B3 -> 2.5 | H13: [ns] | J13: 8bit | K13: Normal | L13: reg82 | M13: 3618 | N13: 2082 | O13: 1058 | P13: 546 | Q13: 290 | R13: 290
A14: Image Size | B14: =B7*B8/8*B4/1000000 -> 15.72864 | C14: [MBytes] | F14: channel count log | G14: =LOG(B6,2) -> 4 | H14: [count] | L14: reg85 | M14: 143 | N14: 257 | O14: 515 | P14: 1031 | Q14: 2063 | R14: 4127
A15: Frame Time | B15: =MAX(G22,B21)+G19/1000 -> 10.052725 | C15: [ms] | F15: mode number | G15: =ISNUMBER(FIND(B5,"Normal"))*1+ISNUMBER(FIND(B5,"Skipping 2x2"))*2+ISNUMBER(FIND(B5,"Binning 2x2"))*3 -> 1 | H15: [count] | K15: Subsample 2x2 | L15: reg82 | M15: 2338 | N15: 2082 | O15: 1058 | P15: 546 | Q15: 290 | R15: 290
A16: Max FPS | B16: =1000/B15 -> 99.47551535 | C16: [count] | F16: bit depth number | G16: =(B4-8)/2 -> 1 | H16: [count] | L16: reg85 | M16: 239 | N16: 257 | O16: 515 | P16: 1031 | Q16: 2063 | R16: 4127
A17: Average Transfer Speed | B17: =B14/B15*1000 -> 1564.61457 | C17: [MB/s] | F17: reg 82 | G17: =INDIRECT(ADDRESS(13+2*(G15-1)+6*G16,13+5-G14)) -> 1563 | H17: [count] | K17: Binning 2x2 | L17: reg82 | M17: 802 | N17: 802 | O17: 802 | P17: 546 | Q17: 290 | R17: 290
F18: reg 85 | G18: =INDIRECT(ADDRESS(14+2*(G15-1)+6*G16,13+5-G14)) -> 257 | H18: [count] | L18: reg85 | M18: 767 | N18: 767 | O18: 767 | P18: 1031 | Q18: 2063 | R18: 4127
F19: FOT | G19: =(INT(G17/256)+2)*G20 -> 51.6 | H19: [us] | J19: 10bit | K19: Normal | L19: reg82 | M19: 3099 | N19: 1563 | O19: 795 | P19: 539 | Q19: 283 | R19: 283
A20: Exposure times | F20: Line Time | G20: =(G18+1)*G13*B4/1000 -> 6.45 | H20: [us] | L20: reg85 | M20: 128 | N20: 257 | O20: 515 | P20: 1031 | Q20: 2063 | R20: 4127
A21: Actual Exposure Time | B21: =((B9-1)*(G18+1)+(34*MOD(G17,256))+1)*G13*B4/1000000 -> 10.001125 | C21: [ms] | F21: Readout lines | G21: 3072 | H21: [count] | K21: Subsample 2x2 | L21: reg82 | M21: 2843 | N21: 1563 | O21: 795 | P21: 539 | Q21: 283 | R21: 283
F22: Readout time | G22: =G20*G21/2/1000 -> 9.9072 | H22: [ms] | L22: reg85 | M22: 143 | N22: 257 | O22: 515 | P22: 1031 | Q22: 2063 | R22: 4127
K23: Binning 2x2 | L23: reg82 | M23: 798 | N23: 798 | O23: 798 | P23: 542 | Q23: 286 | R23: 286
L24: reg85 | M24: 575 | N24: 575 | O24: 575 | P24: 1031 | Q24: 2063 | R24: 4127
J25: 12bit | K25: Normal | L25: reg82 | M25: 1822 | N25: 1822 | O25: 1054 | P25: 542 | Q25: 286 | R25: 286
L26: reg85 | M26: 244 | N26: 257 | O26: 515 | P26: 1031 | Q26: 2063 | R26: 4127
K27: Subsample 2x2 | L27: reg82 | M27: 2078 | N27: 3102 | O27: 1054 | P27: 542 | Q27: 286 | R27: 286
L28: reg85 | M28: 239 | N28: 257 | O28: 515 | P28: 1031 | Q28: 2063 | R28: 4127
K29: Binning 2x2 | L29: reg82 | M29: 1054 | N29: 1054 | O29: 1054 | P29: 542 | Q29: 286 | R29: 286
L30: reg85 | M30: 479 | N30: 479 | O30: 515 | P30: 1031 | Q30: 2063 | R30: 4127

Sheet IMX174
A1: Setting | B1: Value | C1: Units | D1: min | E1: max | F1: Note
A2: Bit Depth | B2: 10 | C2: [count] | D2: 10 | E2: 12 | F2: IMX174 supports 10 and 12 bit depth
A3: Channel count | B3: 8 | C3: [count] | F3: IMX174 supports 2; 4; or 8 channels
A4: ROI Width | B4: 1936 | C4: [count] | D4: 8 | E4: 1936 | F4: ROI in X direction decreases average transport bandwidth needed to transfer one frame (the whole line is read from sensor but only ROI part is sent)
A5: ROI Height | B5: 1216 | C5: [count] | D5: 2 | E5: 1216 | F5: ROI in Y direction decreases frame readout time (decreases number of lines that need to be read out before going to next frame)
A6: Exp time | B6: 19 | C6: [us] | D6: =B17 -> 19 | E6: =ROUND(65535*(1/75000000)*1000000*4085+13.73, 0) -> 3569487
A8: Results
A9: Frame Transfer | F9: Calculations | K9: Register Presets
A10: Pixel Count | B10: =B5*B4/1000000 -> 2.354176 | C10: [Mpix] | F10: bit depth number | G10: =(B2-8)/2 -> 1 | H10: [count] | K10: Channel Count | M10: 8 | N10: 4 | O10: 2
A11: Image Size | B11: =B4*B5/8*B2/1000000 -> 2.94272 | C11: [MBytes] | F11: channel count log | G11: =LOG(B3,2) -> 3 | H11: [count] | J11: 10bit | K11: Normal | L11: HMAX | M11: 360 | N11: 720 | O11: 1440
A12: Frame Time | B12: =G14*G13/1000 -> 6.0192 | C12: [ms] | F12: HMAX reg | G12: =MAX(INDIRECT(ADDRESS(G10*2+9,16-G11)),ROUND((B6-13.73)/4085/((1/75000000)*1000000), 0)) -> 360 | H12: [count]
A13: Max FPS | B13: =1000/B12 -> 166.1350346 | C13: [count] | F13: H period | G13: =(1/75000000)*1000000*G12 -> 4.8 | H13: [us] | J13: 12bit | K13: Normal | L13: HMAX | M13: 462 | N13: 924 | O13: 1848
A14: Average Transfer Speed | B14: =B11/B12*1000 -> 488.8888889 | C14: [MB/s] | F14: VMAX reg | G14: =MAX(ROUND((((B6-13.73)/G13)+10), 0), B5+38) -> 1254 | H14: [count]
F15: FOT | G15: =10*G13 -> 48 | H15: [us]
A16: Exposure times | F16: Readout Time | G16: =G13*B5/1000 -> 5.8368 | H16: [ms]
A17: Min Exposure Time | B17: =ROUND(INDIRECT(ADDRESS(G10*2+9,16-G11))*(1/75000000)*1000000+13.73, 0) -> 19 | C17: [us]
A18: Actual Exposure Time | B18: =((ROUND((B6-13.73)/G13,0)*G13)+13.73)/1000 -> 0.01853 | C18: [ms]

Sheet IMX250
A1: Setting | B1: Value | C1: Units | D1: min | E1: max | F1: Note
A2: Sensor type | B2: Mono | F2: Only Mono IMX250 supports Binning
A3: Bit Depth | B3: 8 | C3: [count] | D3: 8 | E3: 12 | F3: IMX250 supports 8; 10 and 12 bit depth
A4: Binning | B4: 1x1 | F4: Binning/Decimation: vertical x horizontal
A5: Decimation | B5: 1x1
A6: Channel count | B6: 16 | C6: [count] | F6: IMX250 supports 4; 8; or 16 channels
A7: ROI Width | B7: 2464 | C7: [count] | D7: 8 | E7: 2464 | F7: ROI in X direction decreases average transport bandwidth needed to transfer one frame (the whole line is read from sensor but only ROI part is sent)
A8: ROI Height | B8: 2056 | C8: [count] | D8: 4 | E8: 2056 | F8: ROI in Y direction decreases frame readout time (decreases number of lines that need to be read out before going to next frame)
A9: Exp time | B9: 19 | C9: [us] | D9: =B20 -> 17 | E9: =ROUND(65535*(1/75000000)*1000000*4085+13.73, 0) -> 3569487
A11: Results
A12: Frame Transfer | F12: Calculations | K12: Register Presets
A13: Pixel Count | B13: =B8*B7/1000000 -> 5.065984 | C13: [Mpix] | F13: bit depth number | G13: =(B3-6)/2 -> 1 | H13: [count] | K13: Channel Count | M13: 16 | N13: 8 | O13: 4
A14: Image Size | B14: =B7*B8/8*B3/1000000 -> 5.065984 | C14: [MBytes] | F14: channel count log | G14: =LOG(B6,2) -> 4 | H14: [count] | J14: 8bit | K14: Normal | L14: HMAX | M14: 217 | N14: 360 | O14: 676
A15: Frame Time | B15: =G17*G16/1000 -> 6.05864 | C15: [ms] | F15: HMAX reg | G15: =INDIRECT(ADDRESS((G13*2+12)+ISNUMBER(FIND("x2",B5, 2))*1, 17-G14)) -> 217 | H15: [count] | K15: Decimation Xx2 | L15: HMAX | M15: 218 | N15: 218 | O15: 368
A16: Max FPS | B16: =1000/B15 -> 165.0535434 | C16: [count] | F16: H period | G16: =(1/75000000)*1000000*G15 -> 2.893333333 | H16: [us] | J16: 10bit | K16: Normal | L16: HMAX | M16: 245 | N16: 440 | O16: 835
A17: Average Transfer Speed | B17: =B14/B15*1000 -> 836.1586099 | C17: [MB/s] | F17: VMAX reg | G17: =MAX(ROUND((((B9-13.73)/G16)+10), 0), B8+38) -> 2094 | H17: [count] | K17: Decimation Xx2 | L17: HMAX | M17: 260 | N17: 250 | O17: 450
F18: FOT | G18: =10*G16 -> 28.93333333 | H18: [us] | J18: 12bit | K18: Normal | L18: HMAX | M18: 396 | N18: 519 | O18: 996
A19: Exposure times | F19: Readout Time | G19: =G16*B8/1000 -> 5.948693333 | H19: [ms] | K19: Decimation Xx2 | L19: HMAX | M19: 396 | N19: 396 | O19: 534
A20: Min Exposure Time | B20: =ROUND(G15*(1/75000000)*1000000+13.73, 0) -> 17 | C20: [us]
A21: Actual Exposure Time | B21: =((ROUND((B9-13.73)/G16,0)*G16)+13.73)/1000 -> 0.01951666667 | C21: [ms]

Sheet IMX252
A1: Setting | B1: Value | C1: Units | D1: min | E1: max | F1: Note
A2: Sensor type | B2: Mono | F2: Only Mono IMX252 supports Binning
A3: Bit Depth | B3: 8 | C3: [count] | D3: 8 | E3: 12 | F3: IMX252 supports 8; 10 and 12 bit depth
A4: Binning | B4: 1x1 | F4: Binning/Decimation: vertical x horizontal
A5: Decimation | B5: 1x1
A6: Channel count | B6: 16 | C6: [count] | F6: IMX252 supports 4; 8; or 16 channels
A7: ROI Width | B7: 2064 | C7: [count] | D7: 8 | E7: 2064 | F7: ROI in X direction decreases average transport bandwidth needed to transfer one frame (the whole line is read from sensor but only ROI part is sent)
A8: ROI Height | B8: 1544 | C8: [count] | D8: 4 | E8: 1544 | F8: ROI in Y direction decreases frame readout time (decreases number of lines that need to be read out before going to next frame)
A9: Exp time | B9: 19 | C9: [us] | D9: =B20 -> 17 | E9: =ROUND(65535*(1/75000000)*1000000*4085+13.73, 0) -> 3569487
A11: Results
A12: Frame Transfer | F12: Calculations | K12: Register Presets
A13: Pixel Count | B13: =B8*B7/1000000 -> 3.186816 | C13: [Mpix] | F13: bit depth number | G13: =(B3-6)/2 -> 1 | H13: [count] | K13: Channel Count | M13: 16 | N13: 8 | O13: 4
A14: Image Size | B14: =B7*B8/8*B3/1000000 -> 3.186816 | C14: [MBytes] | F14: channel count log | G14: =LOG(B6,2) -> 4 | H14: [count] | J14: 8bit | K14: Normal | L14: HMAX | M14: 217 | N14: 310 | O14: 576
A15: Frame Time | B15: =G17*G16/1000 -> 4.577253333 | C15: [ms] | F15: HMAX reg | G15: =INDIRECT(ADDRESS((G13*2+12)+ISNUMBER(FIND("x2",B5, 2))*1, 17-G14)) -> 217 | H15: [count] | K15: Decimation Xx2 | L15: HMAX | M15: 217 | N15: 218 | O15: 320
A16: Max FPS | B16: =1000/B15 -> 218.4716307 | C16: [count] | F16: H period | G16: =(1/75000000)*1000000*G15 -> 2.893333333 | H16: [us] | J16: 10bit | K16: Normal | L16: HMAX | M16: 245 | N16: 380 | O16: 710
A17: Average Transfer Speed | B17: =B14/B15*1000 -> 696.2288884 | C17: [MB/s] | F17: VMAX reg | G17: =MAX(ROUND((((B9-13.73)/G16)+10), 0), B8+38) -> 1582 | H17: [count] | K17: Decimation Xx2 | L17: HMAX | M17: 245 | N17: 245 | O17: 390
F18: FOT | G18: =10*G16 -> 28.93333333 | H18: [us] | J18: 12bit | K18: Normal | L18: HMAX | M18: 396 | N18: 444 | O18: 846
A19: Exposure times | F19: Readout Time | G19: =G16*B8/1000 -> 4.467306667 | H19: [ms] | K19: Decimation Xx2 | L19: HMAX | M19: 396 | N19: 396 | O19: 456
A20: Min Exposure Time | B20: =ROUND(G15*(1/75000000)*1000000+13.73, 0) -> 17 | C20: [us]
A21: Actual Exposure Time | B21: =((ROUND((B9-13.73)/G16,0)*G16)+13.73)/1000 -> 0.01951666667 | C21: [ms]

Sheet IMX253
A1: Setting | B1: Value | C1: Units | D1: min | E1: max | F1: Note
A2: Sensor type | B2: Mono | F2: Only Mono IMX253 supports Binning
A3: Bit Depth | B3: 8 | C3: [count] | D3: 8 | E3: 12 | F3: IMX253 supports 8; 10 and 12 bit depth
A4: Binning | B4: 1x1 | F4: Binning/Decimation: vertical x horizontal
A5: Decimation | B5: 1x1
A6: Channel count | B6: 16 | C6: [count] | F6: IMX253 supports 4; 8; or 16 channels
A7: ROI Width | B7: 4112 | C7: [count] | D7: 8 | E7: 4112 | F7: ROI in X direction decreases average transport bandwidth needed to transfer one frame (the whole line is read from sensor but only ROI part is sent)
A8: ROI Height | B8: 3008 | C8: [count] | D8: 4 | E8: 3008 | F8: ROI in Y direction decreases frame readout time (decreases number of lines that need to be read out before going to next frame)
A9: Exp time | B9: 19 | C9: [us] | D9: =B20 -> 19 | E9: =ROUND(65535*(1/75000000)*1000000*4085+14.26, 0) -> 3569487
A11: Results
A12: Frame Transfer | F12: Calculations | K12: Register Presets
A13: Pixel Count | B13: =B8*B7/1000000 -> 12.368896 | C13: [Mpix] | F13: bit depth number | G13: =(B3-6)/2 -> 1 | H13: [count] | K13: Channel Count | M13: 16 | N13: 8 | O13: 4
A14: Image Size | B14: =B7*B8/8*B3/1000000 -> 12.368896 | C14: [MBytes] | F14: channel count log | G14: =LOG(B6,2) -> 4 | H14: [count] | J14: 8bit | K14: Normal | L14: HMAX | M14: 355 | N14: 568 | O14: 1092
A15: Frame Time | B15: =G17*G16/1000 -> 14.41773333 | C15: [ms] | F15: HMAX reg | G15: =INDIRECT(ADDRESS((G13*2+12)+ISNUMBER(FIND("x2",B5, 2))+ISNUMBER(FIND("x2",B4, 2)), 17-G14)) -> 355 | H15: [count] | K15: Decimation Xx2 | L15: HMAX | M15: 355 | N15: 356 | O15: 576
A16: Max FPS | B16: =1000/B15 -> 69.35903008 | C16: [count] | F16: H period | G16: =(1/75000000)*1000000*G15 -> 4.733333333 | H16: [us] | J16: 10bit | K16: Normal | L16: HMAX | M16: 375 | N16: 700 | O16: 1355
A17: Average Transfer Speed | B17: =B14/B15*1000 -> 857.8946298 | C17: [MB/s] | F17: VMAX reg | G17: =MAX(ROUND((((B9-13.73)/G16)+10), 0), B8+38) -> 3046 | H17: [count] | K17: Decimation Xx2 | L17: HMAX | M17: 375 | N17: 380 | O17: 710
F18: FOT | G18: =10*G16 -> 47.33333333 | H18: [us] | J18: 12bit | K18: Normal | L18: HMAX | M18: 522 | N18: 831 | O18: 1614
A19: Exposure times | F19: Readout Time | G19: =G16*B8/1000 -> 14.23786667 | H19: [ms] | K19: Decimation Xx2 | L19: HMAX | M19: 522 | N19: 522 | O19: 846
A20: Min Exposure Time | B20: =ROUND(G15*(1/75000000)*1000000+14.26, 0) -> 19 | C20: [us]
A21: Actual Exposure Time | B21: =((ROUND((B9-14.26)/G16,0)*G16)+14.26)/1000 -> 0.01899333333 | C21: [ms]

Sheet IMX255
A1: Setting | B1: Value | C1: Units | D1: min | E1: max | F1: Note
A2: Sensor type | B2: Mono | F2: Only Mono IMX255 supports Binning
A3: Bit Depth | B3: 8 | C3: [count] | D3: 8 | E3: 12 | F3: IMX255 supports 8; 10 and 12 bit depth
A4: Binning | B4: 1x1 | F4: Binning/Decimation: vertical x horizontal
A5: Decimation | B5: 1x1
A6: Channel count | B6: 16 | C6: [count] | F6: IMX255 supports 4; 8; or 16 channels
A7: ROI Width | B7: 4112 | C7: [count] | D7: 8 | E7: 4112 | F7: ROI in X direction decreases average transport bandwidth needed to transfer one frame (the whole line is read from sensor but only ROI part is sent)
A8: ROI Height | B8: 2176 | C8: [count] | D8: 4 | E8: 2176 | F8: ROI in Y direction decreases frame readout time (decreases number of lines that need to be read out before going to next frame)
A9: Exp time | B9: 19 | C9: [us] | D9: =B20 -> 19 | E9: =ROUND(65535*(1/75000000)*1000000*4085+14.26, 0) -> 3569487
A11: Results
A12: Frame Transfer | F12: Calculations | K12: Register Presets
A13: Pixel Count | B13: =B8*B7/1000000 -> 8.947712 | C13: [Mpix] | F13: bit depth number | G13: =(B3-6)/2 -> 1 | H13: [count] | K13: Channel Count | M13: 16 | N13: 8 | O13: 4
A14: Image Size | B14: =B7*B8/8*B3/1000000 -> 8.947712 | C14: [MBytes] | F14: channel count log | G14: =LOG(B6,2) -> 4 | H14: [count] | J14: 8bit | K14: Normal | L14: HMAX | M14: 355 | N14: 568 | O14: 1092
A15: Frame Time | B15: =G17*G16/1000 -> 10.4796 | C15: [ms] | F15: HMAX reg | G15: =INDIRECT(ADDRESS((G13*2+12)+ISNUMBER(FIND("x2",B5, 2))+ISNUMBER(FIND("x2",B4, 2)), 17-G14)) -> 355 | H15: [count] | K15: Decimation Xx2 | L15: HMAX | M15: 356 | N15: 356 | O15: 576
A16: Max FPS | B16: =1000/B15 -> 95.42348945 | C16: [count] | F16: H period | G16: =(1/75000000)*1000000*G15 -> 4.733333333 | H16: [us] | J16: 10bit | K16: Normal | L16: HMAX | M16: 375 | N16: 700 | O16: 1355
A17: Average Transfer Speed | B17: =B14/B15*1000 -> 853.8219016 | C17: [MB/s] | F17: VMAX reg | G17: =MAX(ROUND((((B9-14.26)/G16)+10), 0), B8+38) -> 2214 | H17: [count] | K17: Decimation Xx2 | L17: HMAX | M17: 375 | N17: 380 | O17: 710
F18: FOT | G18: =10*G16 -> 47.33333333 | H18: [us] | J18: 12bit | K18: Normal | L18: HMAX | M18: 522 | N18: 831 | O18: 1614
A19: Exposure times | F19: Readout Time | G19: =G16*B8/1000 -> 10.29973333 | H19: [ms] | K19: Decimation Xx2 | L19: HMAX | M19: 522 | N19: 522 | O19: 846
A20: Min Exposure Time | B20: =ROUND(G15*(1/75000000)*1000000+14.26, 0) -> 19 | C20: [us]
A21: Actual Exposure Time | B21: =((ROUND((B9-14.26)/G16,0)*G16)+14.26)/1000 -> 0.01899333333 | C21: [ms]
